fUST/lending_fUST_20250716
["ID","MTS","AMOUNT","RATE_DAILY","PERIOD"]
[372537023,1752676255285,-200.0,0.00019988,2]
[372537024,1752676255297,-200.0,0.00019988,2]
[372537025,1752676255309,-218.07720018,0.00019988,2]
[372537026,1752676255321,-160.0,0.00019988,2]
[372537027,1752676255332,-1014077.66305368,0.00019989,7]
[372537028,1752676255344,-151.0,0.00019989,2]
[372537029,1752676255355,-151.0,0.00019989,2]
[372537030,1752676255367,-151.0,0.00019989,2]
[372537031,1752676255379,-151.0,0.00019989,2]
[372537032,1752676255392,-483.51673,0.00019989,2]
[372537033,1752676255404,-483.51673,0.00019989,2]
[372537034,1752676255415,-151.0,0.00019989,2]
[372537035,1752676255431,-151.0,0.00019989,2]
[372537036,1752676255443,-446.975222,0.00019989,2]
[372537037,1752676255455,-446.975222,0.00019989,2]
[372537038,1752676255466,-151.0,0.00019989,2]
[372537039,1752676255477,-151.0,0.00019989,2]
[372537040,1752676255491,-151.0,0.00019989,2]
[372537041,1752676255502,-151.0,0.00019989,2]
[372537042,1752676255513,-151.0,0.00019989,2]
[372537043,1752676255525,-151.0,0.00019989,2]
[372537044,1752676255537,-202.444389,0.00019989,2]
[372537045,1752676255548,-202.444389,0.00019989,2]
[372537046,1752676255559,-151.0,0.00019989,2]
[372537047,1752676255571,-151.0,0.00019989,2]
[372537048,1752676255583,-1023.134815,0.00019989,2]
[372537049,1752676255595,-1023.134815,0.00019989,2]
[372537050,1752676255606,-151.0,0.00019989,2]
[372537051,1752676255617,-151.0,0.00019989,2]
[372537052,1752676255628,-374.364651,0.00019989,2]
[372537053,1752676255641,-374.364651,0.00019989,2]
[372537054,1752676255652,-151.0,0.00019989,2]
[372537055,1752676255663,-195.485999,0.00019989,2]
[372537056,1752676255678,-195.485999,0.00019989,2]
[372537057,1752676255693,-218.099447,0.00019989,2]
[372537058,1752676255704,-151.0,0.00019989,2]
[372537059,1752676255715,-218.099447,0.00019989,2]
[372537060,1752676255728,-165.299611,0.00019989,2]
[372537061,1752676255739,-165.299611,0.00019989,2]
[372537062,1752676255750,-151.0,0.00019989,2]
[372537063,1752676255761,-151.0,0.00019989,2]
[372537064,1752676255771,-164.202849,0.00019989,2]
[372537065,1752676255782,-151.0,0.00019989,2]
[372537066,1752676255793,-763.264414,0.00019989,2]
[372537067,1752676255804,-763.264414,0.00019989,2]
[372537068,1752676255815,-214.40824756,0.00019989,7]
[372537069,1752676255825,-387.654196,0.00019989,2]
[372537070,1752676255835,-387.654196,0.00019989,2]
[372537071,1752676255846,-151.0,0.00019989,2]
[372537072,1752676255857,-151.0,0.00019989,2]
[372537073,1752676255867,-157.099549,0.00019989,2]
[372537074,1752676255878,-157.099549,0.00019989,2]
[372537075,1752676255889,-273.698498,0.00019989,2]
[372537076,1752676255900,-808.723845,0.00019989,2]
[372537077,1752676255910,-808.723845,0.00019989,2]
[372537078,1752676255921,-151.0,0.00019989,2]
[372537079,1752676255938,-12605.49131908,0.00019989,7]
[372537080,1752676255949,-151.0,0.00019989,2]
[372537081,1752676255959,-151.0,0.00019989,2]
[372537082,1752676255970,-151.0,0.00019989,2]
[372537083,1752676255980,-1831.488564,0.00019989,2]
[372537084,1752676255990,-151.0,0.00019989,2]
[372537085,1752676256000,-1831.488564,0.00019989,2]
[372537086,1752676256010,-151.0,0.0001999,2]
[372537087,1752676256021,-151.0,0.0001999,2]
[372537088,1752676256032,-151.0,0.0001999,2]
[372537089,1752676256041,-151.0,0.0001999,2]
[372537090,1752676256051,-1272.156821,0.0001999,2]
[372537091,1752676256061,-1272.156821,0.0001999,2]
[372537092,1752676256071,-151.0,0.0001999,2]
[372537093,1752676256080,-151.0,0.0001999,2]
[372537094,1752676256090,-169.198699,0.0001999,2]
[372537095,1752676256100,-169.198699,0.0001999,2]
[372537096,1752676256110,-26570.93853944,0.00019998,2]
[372537097,1752676256119,-151.0,0.00019998,2]
[372537098,1752676256129,-214.06655095,0.00019998,2]
[372537099,1752676256139,-200.0,0.00019999,2]
[372537100,1752676256148,-241.72265583,0.00019999,2]
[372537101,1752676256158,-151.0,0.0002,2]
[372537102,1752676256167,-151.0,0.0002,2]
[372537103,1752676256179,-151.0,0.0002,2]
[372537104,1752676256189,-151.0,0.0002,2]
[372537105,1752676256200,-222.052053,0.0002,2]
[372537106,1752676256209,-151.0,0.0002,2]
[372537107,1752676256219,-151.0,0.0002,2]
[372537108,1752676256228,-151.54753,0.0002,2]
[372537109,1752676256237,-151.0,0.0002,2]
[372537110,1752676256247,-187.307792,0.0002,2]
[372537111,1752676256257,-187.307792,0.0002,2]
[372537112,1752676256266,-460.0,0.0002,2]
[372537113,1752676256276,-460.0,0.0002,2]
[372537114,1752676256285,-460.0,0.0002,2]
[372537115,1752676256295,-460.0,0.0002,2]
[372537116,1752676256304,-381.526955,0.0002,2]
[372537117,1752676256313,-381.526955,0.0002,2]
[372537118,1752676256322,-460.0,0.0002,2]
[372537119,1752676256332,-460.0,0.0002,2]
[372537120,1752676256341,-253.653135,0.0002,2]
[372537121,1752676256351,-253.653135,0.0002,2]
[372537122,1752676256361,-218.94040013,0.0002,2]
[372537123,1752676256370,-460.0,0.0002,2]
[372537124,1752676256379,-601.96585045,0.0002,2]
[372537125,1752676256389,-460.0,0.0002,2]
[372537126,1752676256399,-460.0,0.0002,2]
[372537127,1752676256408,-460.0,0.0002,2]
[372537128,1752676256421,-460.0,0.0002,2]
[372537129,1752676256435,-460.0,0.0002,2]
[372537130,1752676256445,-460.0,0.0002,2]
[372537131,1752676256454,-460.0,0.0002,2]
[372537132,1752676256464,-460.0,0.0002,2]
[372537133,1752676256473,-499.02,0.0002,2]
[372537134,1752676256482,-354.29736078,0.0002,2]
[372537135,1752676256491,-460.0,0.0002,2]
[372537136,1752676256500,-460.0,0.0002,2]
[372537137,1752676256509,-460.0,0.0002,2]
[372537138,1752676256517,-601.94,0.0002,2]
[372537139,1752676256527,-460.0,0.0002,2]
[372537140,1752676256535,-548.13864001,0.0002,2]
[372537141,1752676256545,-460.0,0.0002,2]
[372537142,1752676256637,-460.0,0.0002,2]
[372537143,1752676256647,-460.0,0.0002,2]
[372537144,1752676256657,-413.75278172,0.0002,2]
[372537145,1752676256667,-518.16736314,0.0002,2]
[372537146,1752676256683,-460.0,0.0002,2]
[372537147,1752676256694,-707.02,0.0002,2]
[372537148,1752676256705,-460.0,0.0002,2]
[372537149,1752676256715,-460.0,0.0002,2]
[372537150,1752676256725,-415.54,0.0002,2]
[372537151,1752676256735,-460.0,0.0002,2]
[372537152,1752676256746,-460.0,0.0002,2]
[372537153,1752676256755,-460.0,0.0002,2]
[372537154,1752676256765,-555.83,0.0002,2]
[372537155,1752676256775,-471.97041884,0.0002,2]
[372537156,1752676256784,-460.0,0.0002,2]
[372537157,1752676256793,-460.0,0.0002,2]
[372537158,1752676256803,-460.0,0.0002,2]
[372537159,1752676256812,-460.0,0.0002,2]
[372537160,1752676256822,-460.0,0.0002,2]
[372537161,1752676256831,-460.0,0.0002,2]
[372537162,1752676256841,-460.0,0.0002,2]
[372537163,1752676256852,-460.0,0.0002,2]
[372537164,1752676256862,-462.88692985,0.0002,2]
[372537165,1752676256871,-1346.54,0.0002,2]
[372537166,1752676256881,-460.0,0.0002,2]
[372537167,1752676256891,-400.18269116,0.0002,2]
[372537168,1752676256901,-460.0,0.0002,2]
[372537169,1752676256911,-460.0,0.0002,2]
[372537170,1752676256921,-468.61007939,0.0002,2]
[372537171,1752676256935,-151.0,0.0002,2]
[372537172,1752676256946,-460.0,0.0002,2]
[372537173,1752676256956,-460.0,0.0002,2]
[372537174,1752676256967,-460.0,0.0002,2]
[372537175,1752676256977,-460.0,0.0002,2]
[372537176,1752676256987,-1141.08,0.0002,2]
[372537177,1752676256997,-460.0,0.0002,2]
[372537178,1752676257007,-460.0,0.0002,2]
[372537179,1752676257017,-460.0,0.0002,2]
[372537180,1752676257027,-460.0,0.0002,2]
[372537181,1752676257036,-460.0,0.0002,2]
[372537182,1752676257046,-515.30536599,0.0002,2]
[372537183,1752676257055,-518.87916651,0.0002,2]
[372537184,1752676257065,-460.0,0.0002,2]
[372537185,1752676257074,-1046.07,0.0002,2]
[372537186,1752676257084,-460.0,0.0002,2]
[372537187,1752676257093,-202.444389,0.0002,2]
[372537188,1752676257103,-202.444389,0.0002,2]
[372537189,1752676257113,-1186.96,0.0002,2]
[372537190,1752676257122,-151.0,0.0002,2]
[372537191,1752676257133,-1245.0,0.0002,2]
[372537192,1752676257142,-151.0,0.0002,2]
[372537193,1752676257152,-686.03,0.0002,2]
[372537194,1752676257161,-520.09,0.0002,2]
[372537195,1752676257171,-460.0,0.0002,2]
[372537196,1752676257185,-460.0,0.0002,2]
[372537197,1752676257195,-460.0,0.0002,2]
[372537198,1752676257205,-460.0,0.0002,2]
[372537199,1752676257215,-460.0,0.0002,2]
[372537200,1752676257225,-151.0,0.0002,2]
[372537201,1752676257234,-151.0,0.0002,2]
[372537202,1752676257244,-460.0,0.0002,2]
[372537203,1752676257253,-460.0,0.0002,2]
[372537204,1752676257263,-460.0,0.0002,2]
[372537205,1752676257272,-460.0,0.0002,2]
[372537206,1752676257281,-374.364651,0.0002,2]
[372537207,1752676257290,-374.364651,0.0002,2]
[372537208,1752676257300,-460.0,0.0002,2]
[372537209,1752676257310,-460.0,0.0002,2]
[372537210,1752676257320,-151.0,0.0002,2]
[372537211,1752676257330,-460.0,0.0002,2]
[372537212,1752676257339,-530.88,0.0002,2]
[372537213,1752676257349,-460.0,0.0002,2]
[372537214,1752676257359,-551.26785098,0.0002,2]
[372537215,1752676257368,-417.55114959,0.0002,2]
[372537216,1752676257378,-460.0,0.0002,2]
[372537217,1752676257387,-501.32,0.0002,2]
[372537218,1752676257396,-460.0,0.0002,2]
[372537219,1752676257406,-460.0,0.0002,2]
[372537220,1752676257416,-218.099447,0.0002,2]
[372537221,1752676257429,-151.0,0.0002,2]
[372537222,1752676257438,-304.0739442,0.0002,2]
[372537223,1752676257448,-460.0,0.0002,2]
[372537224,1752676257457,-218.099447,0.0002,2]
[372537225,1752676257466,-460.0,0.0002,2]
[372537226,1752676257476,-460.0,0.0002,2]
[372537227,1752676257486,-165.299611,0.0002,2]
[372537228,1752676257495,-165.299611,0.0002,2]
[372537229,1752676257505,-608.81,0.0002,2]
[372537230,1752676257515,-151.0,0.0002,2]
[372537231,1752676257525,-460.0,0.0002,2]
[372537232,1752676257535,-460.0,0.0002,2]
[372537233,1752676257545,-1161.63,0.0002,2]
[372537234,1752676257555,-765.32,0.0002,2]
[372537235,1752676257565,-3269.49,0.0002,2]
[372537236,1752676257575,-151.0,0.0002,2]
[372537237,1752676257585,-460.0,0.0002,2]
[372537238,1752676257595,-166.434447,0.0002,2]
[372537239,1752676257605,-763.264414,0.0002,2]
[372537240,1752676257616,-460.0,0.0002,2]
[372537241,1752676257626,-763.264414,0.0002,2]
[372537242,1752676257638,-460.0,0.0002,2]
[372537243,1752676257647,-1525.54,0.0002,2]
[372537244,1752676257657,-460.0,0.0002,2]
[372537245,1752676257667,-460.0,0.0002,2]
[372537246,1752676257682,-460.0,0.0002,2]
[372537247,1752676257694,-3890.32,0.0002,2]
[372537248,1752676257705,-155.03,0.0002,2]
[372537249,1752676257716,-679.93,0.0002,2]
[372537250,1752676257726,-460.0,0.0002,2]
[372537251,1752676257737,-10973.62,0.0002,2]
[372537252,1752676257748,-5861.41,0.0002,2]
[372537253,1752676257760,-6428.59,0.0002,2]
[372537254,1752676257772,-460.0,0.0002,2]
[372537255,1752676257783,-387.654196,0.0002,2]
[372537256,1752676257794,-387.654196,0.0002,2]
[372537257,1752676257804,-1217.05,0.0002,2]
[372537258,1752676257815,-151.0,0.0002,2]
[372537259,1752676257826,-460.0,0.0002,2]
[372537260,1752676257836,-151.0,0.0002,2]
[372537261,1752676257846,-599.74,0.0002,2]
[372537262,1752676257856,-157.099549,0.0002,2]
[372537263,1752676257865,-790.69,0.0002,2]
[372537264,1752676257876,-157.099549,0.0002,2]
[372537265,1752676257885,-887.13,0.0002,2]
[372537266,1752676257895,-460.0,0.0002,2]
[372537267,1752676257904,-460.0,0.0002,2]
[372537268,1752676257914,-1150.56,0.0002,2]
[372537269,1752676257929,-460.0,0.0002,2]
[372537270,1752676257940,-460.0,0.0002,2]
[372537271,1752676257950,-808.723845,0.0002,2]
[372537272,1752676257960,-1543.94562039,0.0002,2]
[372537273,1752676314111,281.998531,0.00013699,2]
[372537274,1752676314976,29.95351157,0.00018272,2]
[372537275,1752676315001,361.57576433,0.00018272,2]
[372537276,1752676318026,359.320402,0.00027397,120]
[372537278,1752676334624,1000.0,0.00018574,2]
[372537280,1752676368634,199.52533278,0.000189,2]
[372537281,1752676382595,150.0,0.000189,2]
[372537282,1752676451534,2689.27799362,0.00018929,2]
[372537283,1752676483552,185.358644,0.00018506,2]
[372537284,1752676573403,1100.0,0.00017478,2]
[372537285,1752676575045,1100.0,0.00018574,2]
[372537286,1752676605095,165.451045,0.00018175,2]
[372537287,1752676684043,735.17399528,0.000189,2]
[372537288,1752676746655,3325.03584822,0.00018155,2]
[372537289,1752676746973,3325.03584822,0.00018498,2]
[372537290,1752676747308,3325.03584822,0.00018825,2]
[372537291,1752676775685,168.489629,0.00018228,2]
[372537292,1752676775901,168.489629,0.00018228,120]
[372537293,1752676779692,1440.2117936,0.00018978,2]
[372537294,1752676785046,225.54095116,0.00018467,2]
[372537295,1752676853503,504.28730657,0.00018574,2]
[372537296,1752676853530,495.71269343,0.00018574,2]
[372537297,1752676882453,3282.66687886,0.00018236,2]
[372537298,1752676882768,3282.66687886,0.00018359,2]
[372537299,1752676883552,3282.66687886,0.00018688,2]
[372537300,1752676888380,519.05,0.00027397,120]
[372537302,1752676985400,1865.04884487,0.000189,2]
[372537303,1752677023488,1533.29798446,0.00018978,2]
[372537304,1752677049088,3282.66687887,0.00018825,2]
[372537305,1752677110243,1626.21981942,0.00018086,2]
[372537306,1752677112421,1349.05314237,0.00018086,2]
[372537307,1752677112446,5149.32125605,0.00018086,2]
[372537314,1752677239591,-859.65146354,0.0001902,2]
[372537315,1752677286589,1243.36589658,0.000189,2]
[372537318,1752677291683,1341.63573642,0.00018978,2]
[372537319,1752677305704,3175.21044592,0.0001897,2]
[372537320,1752677333837,302.84859387,0.000189,2]
[372537321,1752677376450,1282.4241263,0.00018075,2]
[372537323,1752677409711,269.490301,0.00027397,120]
[372537324,1752677428755,3175.21044593,0.00018959,2]
[372537375,1752677432405,-466.53666222,0.00019035,2]
[372537377,1752677432430,-561.01946318,0.00019035,2]
[372537379,1752677432443,-172.4438746,0.00019035,2]
[372537381,1752677432453,-300.0,0.00019067,2]
[372537383,1752677432463,-300.0,0.00019067,2]
[372537385,1752677432473,-300.0,0.00019067,2]
[372537387,1752677432483,-669.22,0.00019068,3]
[372537389,1752677432493,-300.0,0.00019077,2]
[372537391,1752677432506,-1200.0,0.00019077,2]
[372537393,1752677432516,-300.0,0.00019077,2]
[372537395,1752677432526,-257.58922653,0.00019077,2]
[372537397,1752677432538,-30.13255444,0.00019077,2]
[372537399,1752677432547,-4411.72796428,0.00019078,2]
[372537401,1752677432557,-114996.14948128,0.00019078,2]
[372537403,1752677432569,-1651.80000007,0.00019078,2]
[372537404,1752677432580,-467.09929999,0.00019078,2]
[372537405,1752677432591,-3335.72482548,0.00019078,2]
[372537425,1752677438426,-12788.93122064,0.00019078,2]
[372537427,1752677438440,-50000.0,0.00019078,2]
[372537429,1752677438450,-302.84859387,0.00019089,2]
[372537431,1752677438459,-151.0,0.000191,2]
[372537433,1752677438469,-151.0,0.000191,2]
[372537435,1752677438479,-151.0,0.000191,2]
[372537437,1752677438488,-446.14,0.00019163,3]
[372537439,1752677438498,-223.07,0.00019163,3]
[372537441,1752677438509,-500.0,0.00019173,2]
[372537443,1752677438519,-500.0,0.00019173,2]
[372537445,1752677438529,-500.0,0.00019173,2]
[372537447,1752677438538,-326.42614589,0.00019173,2]
[372537449,1752677438548,-500.0,0.00019173,2]
[372537451,1752677438557,-500.0,0.00019173,2]
[372537453,1752677438567,-500.48132393,0.00019173,2]
[372537455,1752677438579,-500.0,0.00019173,2]
[372537457,1752677438593,-500.0,0.00019173,2]
[372537459,1752677438606,-300.02356042,0.00019173,2]
[372537461,1752677438623,-160.24324187,0.00019173,2]
[372537463,1752677438633,-500.0,0.00019173,2]
[372537465,1752677438643,-500.0,0.00019173,2]
[372537467,1752677438655,-500.0,0.00019173,2]
[372537469,1752677438669,-500.0,0.00019173,2]
[372537472,1752677438679,-336.35096426,0.00019173,2]
[372537474,1752677438688,-500.0,0.00019173,2]
[372537475,1752677438698,-500.0,0.00019173,2]
[372537478,1752677438708,-500.0,0.00019173,2]
[372537480,1752677438718,-500.0,0.00019173,2]
[372537482,1752677438728,-500.0,0.00019173,2]
[372537484,1752677438738,-376.81911836,0.00019173,2]
[372537485,1752677438755,-500.0,0.00019173,2]
[372537487,1752677438764,-536.70707759,0.00019173,2]
[372537490,1752677438774,-500.0,0.00019173,2]
[372537491,1752677438784,-514.20255592,0.00019173,2]
[372537494,1752677438794,-207.82590288,0.00019173,2]
[372537496,1752677438803,-500.0,0.00019173,2]
[372537498,1752677438813,-150.42695821,0.00019173,2]
[372537500,1752677438823,-500.0,0.00019173,2]
[372537502,1752677438832,-500.0,0.00019173,2]
[372537503,1752677438842,-500.0,0.00019173,2]
[372537506,1752677438852,-500.0,0.00019173,2]
[372537508,1752677438862,-500.0,0.00019173,2]
[372537509,1752677438872,-291.21452766,0.00019173,2]
[372537512,1752677438882,-505.45312381,0.00019173,2]
[372537513,1752677438891,-500.0,0.00019173,2]
[372537515,1752677438900,-500.36123989,0.00019173,2]
[372537517,1752677438912,-500.0,0.00019173,2]
[372537519,1752677438922,-500.0,0.00019173,2]
[372537522,1752677438933,-500.0,0.00019173,2]
[372537523,1752677438943,-500.0,0.00019173,2]
[372537526,1752677438953,-500.08354226,0.00019173,2]
[372537528,1752677438967,-460.0,0.00019178,2]
[372537537,1752677438977,-460.0,0.00019178,2]
[372537540,1752677439072,-460.0,0.00019178,2]
[372537542,1752677439082,-460.0,0.00019178,2]
[372537544,1752677439092,-463.03362998,0.00019178,2]
[372537546,1752677439101,-460.0,0.00019178,2]
[372537548,1752677439111,-460.0,0.00019178,2]
[372537550,1752677439120,-460.0,0.00019178,2]
[372537552,1752677439129,-460.0,0.00019178,2]
[372537554,1752677439138,-460.0,0.00019178,2]
[372537556,1752677439148,-460.0,0.00019178,2]
[372537558,1752677439157,-460.0,0.00019178,2]
[372537560,1752677439166,-340.0,0.00019178,2]
[372537562,1752677439176,-460.0,0.00019178,2]
[372537564,1752677439187,-460.0,0.00019178,2]
[372537566,1752677439197,-460.0,0.00019178,2]
[372537568,1752677439206,-212.58,0.00019178,2]
[372537570,1752677439216,-460.0,0.00019178,2]
[372537572,1752677439226,-190.40801784,0.00019178,2]
[372537574,1752677439236,-460.0,0.00019178,2]
[372537576,1752677439245,-460.0,0.00019178,2]
[372537578,1752677439254,-460.0,0.00019178,2]
[372537580,1752677439264,-460.0,0.00019178,2]
[372537582,1752677439274,-460.0,0.00019178,2]
[372537583,1752677439283,-460.0,0.00019178,2]
[372537584,1752677439293,-460.0,0.00019178,2]
[372537585,1752677439303,-460.0,0.00019178,2]
[372537586,1752677439312,-460.0,0.00019178,2]
[372537587,1752677439322,-172.07575812,0.00019178,2]
[372537588,1752677439331,-460.0,0.00019178,2]
[372537589,1752677439341,-460.0,0.00019178,2]
[372537590,1752677439352,-460.0,0.00019178,2]
[372537591,1752677439362,-460.0,0.00019178,2]
[372537592,1752677439372,-460.0,0.00019178,2]
[372537593,1752677439382,-460.0,0.00019178,2]
[372537594,1752677439392,-500.0,0.00019178,2]
[372537595,1752677439401,-460.0,0.00019178,2]
[372537596,1752677439411,-460.0,0.00019178,2]
[372537597,1752677439421,-460.0,0.00019178,2]
[372537598,1752677439432,-460.0,0.00019178,2]
[372537599,1752677439443,-460.0,0.00019178,2]
[372537600,1752677439452,-460.0,0.00019178,2]
[372537601,1752677439462,-460.0,0.00019178,2]
[372537602,1752677439471,-460.0,0.00019178,2]
[372537603,1752677439481,-460.0,0.00019178,2]
[372537604,1752677439490,-460.0,0.00019178,2]
[372537605,1752677439500,-460.0,0.00019178,2]
[372537606,1752677439510,-460.0,0.00019178,2]
[372537607,1752677439519,-460.0,0.00019178,2]
[372537608,1752677439530,-460.0,0.00019178,2]
[372537609,1752677439540,-460.0,0.00019178,2]
[372537610,1752677439550,-460.0,0.00019178,2]
[372537611,1752677439560,-460.0,0.00019178,2]
[372537612,1752677439570,-460.0,0.00019178,2]
[372537613,1752677439579,-461.85604547,0.00019178,2]
[372537614,1752677439589,-460.0,0.00019178,2]
[372537615,1752677439599,-460.0,0.00019178,2]
[372537616,1752677439608,-460.0,0.00019178,2]
[372537617,1752677439618,-460.0,0.00019178,2]
[372537618,1752677439627,-465.14865376,0.00019178,2]
[372537619,1752677439637,-460.0,0.00019178,2]
[372537620,1752677439646,-461.83340854,0.00019178,2]
[372537621,1752677439656,-460.0,0.00019178,2]
[372537622,1752677439665,-460.0,0.00019178,2]
[372537623,1752677439675,-448.83137158,0.00019178,2]
[372537624,1752677439686,-460.0,0.00019178,2]
[372537625,1752677439695,-449.36653433,0.00019178,2]
[372537626,1752677439707,-460.0,0.00019178,2]
[372537627,1752677439716,-460.0,0.00019178,2]
[372537628,1752677439726,-460.0,0.00019178,2]
[372537629,1752677439736,-460.0,0.00019178,2]
[372537630,1752677439746,-460.0,0.00019178,2]
[372537631,1752677439755,-460.0,0.00019178,2]
[372537632,1752677439764,-539.40311699,0.00019178,2]
[372537633,1752677439774,-460.0,0.00019178,2]
[372537634,1752677439784,-460.0,0.00019178,2]
[372537635,1752677439793,-460.0,0.00019178,2]
[372537636,1752677439803,-460.0,0.00019178,2]
[372537637,1752677439813,-460.0,0.00019178,2]
[372537638,1752677439822,-539.79109942,0.00019178,2]
[372537639,1752677439831,-460.0,0.00019178,2]
[372537640,1752677439841,-460.0,0.00019178,2]
[372537641,1752677439851,-460.0,0.00019178,2]
[372537642,1752677439861,-460.0,0.00019178,2]
[372537643,1752677439871,-460.0,0.00019178,2]
[372537644,1752677439881,-460.0,0.00019178,2]
[372537645,1752677439891,-460.0,0.00019178,2]
[372537646,1752677439901,-460.0,0.00019178,2]
[372537647,1752677439910,-460.0,0.00019178,2]
[372537648,1752677439920,-460.0,0.00019178,2]
[372537649,1752677439930,-460.0,0.00019178,2]
[372537651,1752677439940,-462.04287741,0.00019178,2]
[372537653,1752677439950,-460.0,0.00019178,2]
[372537654,1752677439960,-460.0,0.00019178,2]
[372537655,1752677439973,-460.0,0.00019178,2]
[372537656,1752677439983,-460.0,0.00019178,2]
[372537657,1752677439992,-460.0,0.00019178,2]
[372537658,1752677440001,-460.0,0.00019178,2]
[372537659,1752677440013,-350.0352822,0.00019178,2]
[372537660,1752677440023,-460.0,0.00019178,2]
[372537661,1752677440032,-460.0,0.00019178,2]
[372537662,1752677440043,-460.0,0.00019178,2]
[372537663,1752677440053,-460.0,0.00019178,2]
[372537664,1752677440062,-460.0,0.00019178,2]
[372537665,1752677440071,-460.0,0.00019178,2]
[372537667,1752677440081,-460.0,0.00019178,2]
[372537669,1752677440098,-460.0,0.00019178,2]
[372537671,1752677440108,-500.0,0.00019178,2]
[372537673,1752677440118,-500.0,0.00019178,2]
[372537675,1752677440128,-500.0,0.00019178,2]
[372537677,1752677440138,-460.0,0.00019178,2]
[372537679,1752677440151,-460.0,0.00019178,2]
[372537681,1752677440160,-460.0,0.00019178,2]
[372537683,1752677440171,-460.0,0.00019178,2]
[372537685,1752677440184,-460.0,0.00019178,2]
[372537687,1752677440194,-658.85,0.00019178,2]
[372537689,1752677440204,-460.0,0.00019178,2]
[372537691,1752677440214,-460.0,0.00019178,2]
[372537693,1752677440224,-460.0,0.00019178,2]
[372537695,1752677440234,-460.0,0.00019178,2]
[372537697,1752677440244,-460.0,0.00019178,2]
[372537699,1752677440253,-460.0,0.00019178,2]
[372537701,1752677440263,-460.0,0.00019178,2]
[372537703,1752677440273,-460.0,0.00019178,2]
[372537704,1752677440283,-460.0,0.00019178,2]
[372537706,1752677440292,-460.0,0.00019178,2]
[372537708,1752677440302,-275.7092804,0.00019178,2]
[372537710,1752677440312,-460.0,0.00019178,2]
[372537712,1752677440321,-460.0,0.00019178,2]
[372537714,1752677440331,-500.0,0.00019178,2]
[372537716,1752677440341,-500.0,0.00019178,2]
[372537718,1752677440351,-500.06,0.00019178,2]
[372537720,1752677440361,-460.0,0.00019178,2]
[372537722,1752677440370,-460.0,0.00019178,2]
[372537724,1752677440379,-460.0,0.00019178,2]
[372537726,1752677440389,-460.0,0.00019178,2]
[372537728,1752677440399,-460.0,0.00019178,2]
[372537729,1752677440409,-472.72235348,0.00019178,2]
[372537730,1752677440419,-460.0,0.00019178,2]
[372537731,1752677440431,-460.0,0.00019178,2]
[372537732,1752677440442,-475.43,0.00019178,2]
[372537733,1752677440453,-460.0,0.00019178,2]